[Event "28th Hit Open-A 2024"]
[Site "Nova Gorica"]
[Date "2024.01.30"]
[Round "6.7"]
[White "Sebenik, Matej"]
[Black "Drazic, Sinisa"]
[Result "1-0"]
[ECO "D40"]
[WhiteElo "2536"]
[BlackElo "2270"]
[Annotator "RC"]
[PlyCount "177"]
[EventDate "2024.01.22"]
[EventType "swiss"]
[EventCountry "SLO"]
[SourceTitle "playchess.com"]
[Source "ChessBase"]
[SourceQuality "1"]
[TimeControl "5400+30"]

1. Nf3 {[%emt 0:00:16]} c5 {[%emt 0:04:14]} 2. c4 {[%emt 0:00:16]} Nf6 {[%emt 0:00:04]} 3. Nc3 {[%emt 0:00:18]} e6 {[%emt 0:00:02]} 4. e3 {[%emt 0:00:19]} a6 {[%emt 0:00:16]} 5. d4 {[%emt 0:00:22]} d5 {[%emt 0:00:05]} 6. a3 {[%emt 0:01:15]} Nc6 {[%emt 0:02:00]} 7. dxc5 {[%emt 0:00:20]} Bxc5 {[%emt 0:00:13]} 8. b4 {[%emt 0:00:14]} Ba7 {[%emt 0:00:15]} 9. Bb2 {[%emt 0:00:42]} dxc4 {[%emt 0:03:10]} 10. Bxc4 {[%emt 0:03:58]} Qxd1+ {[%emt 0:00:07]} 11. Rxd1 {[%emt 0:00:11]} Ke7 {[%emt 0:00:10]} 12. O-O {[%emt 0:10:50]} b5 {[%emt 0:09:43]} 13. Bd3 {[%emt 0:00:54]} Bb7 {[%emt 0:00:58]} 14. Ne4 {[%emt 0:01:08]} Rad8 {[%emt 0:18:55]} 15. Nxf6 {[%emt 0:32:52]} gxf6 {[%emt 0:02:11]} 16. Be4 {[%emt 0:00:04]} Rxd1 {[%emt 0:05:27]} 17. Rxd1 {[%emt 0:00:06]} h6 {[%emt 0:00:10]} 18. Bd4 {[%emt 0:15:11]} Bxd4 {[%emt 0:11:16]} 19. Bxc6 {[%emt 0:00:12]} Bxc6 {[%emt 0:01:19]} 20. Nxd4 {[%emt 0:00:05]} Bd5 {[%emt 0:01:05]} 21. Rc1 {[%emt 0:18:37]} Kd6 {[%emt 0:00:23]} 22. f3 {[%emt 0:00:16]} f5 {[%emt 0:00:56]} 23. Rc5 {[%emt 0:01:25]} h5 {[%emt 0:03:57]} 24. h4 {[%emt 0:00:18]} Rg8 {[%emt 0:01:44]} 25. Kf2 {[%emt 0:00:06]} Rb8 {[%emt 0:00:04]} 26. Ne2 {[%emt 0:03:43]} Bc4 {[%emt 0:01:34]} 27. Ng3 {[%emt 0:01:36]} a5 {[%emt 0:00:39]} 28. e4 {[%emt 0:04:39]} axb4 {[%emt 0:00:15]} 29. axb4 {[%emt 0:00:06]} Ra8 {[%emt 0:02:27]} 30. exf5 {[%emt 0:00:04]} Ra2+ {[%emt 0:00:23]} 31. Kg1 {[%emt 0:04:35]} Rb2 {[%emt 0:00:05]} 32. Ne4+ {[%emt 0:00:03]} Kd7 {[%emt 0:00:08]} 33. fxe6+ {[%emt 0:00:01]} Kxe6 {[%emt 0:00:29]} 34. Rxh5 {[%emt 0:00:22]} Rxb4 {[%emt 0:00:19]} 35. Rh6+ {[%emt 0:00:09]} Ke5 {[%emt 0:01:05]} 36. Rb6 {[%emt 0:00:15]} Rb1+ {[%emt 0:03:56]} 37. Kh2 {[%emt 0:00:01]} f5 {[%emt 0:00:53]} 38. Nd2 {[%emt 0:00:37]} Rd1 {[%emt 0:00:07]} 39. Nxc4+ {[%emt 0:01:24]} bxc4 {[%emt 0:00:01]} 40. Rc6 {[%emt 0:00:08]} Rd4 {[%emt 0:01:04]} 41. Kg3 {[%emt 0:01:10]} f4+ {[%emt 0:00:22]} 42. Kh3 {[%emt 0:00:06]} Kf5 {[%emt 0:00:29]} 43. Rc5+ {[%emt 0:01:01]} Kg6 {[%emt 0:00:45]} 44. Kg4 {[%emt 0:00:04]} Kh6 {[%emt 0:01:56]} 45. Rc6+ {[%emt 0:00:44]} Kh7 {[%emt 0:00:16]} 46. Rc7+ {[%emt 0:01:30]} Kh6 {[%emt 0:00:01]} 47. Rc6+ {[%emt 0:00:46]} Kh7 {[%emt 0:00:01]} 48. Rc5 {[%emt 0:00:21]} Kh6 {[%emt 0:00:57]} 49. Rh5+ {[%emt 0:00:29]} Kg6 {[%emt 0:00:03]} 50. Rf5 {[%emt 0:00:25]} c3 {[%emt 0:01:39]} 51. Rc5 {[%emt 0:00:23]} Rd2 {[%emt 0:00:01]} 52. h5+ {[%emt 0:00:37]} Kh6 {[%emt 0:03:49]} 53. Rc6+ {[%emt 0:00:01]} Kg7 {[%emt 0:01:17]} 54. Kxf4 {[%emt 0:00:27]} Rxg2 {[%emt 0:00:06]} 55. Rxc3 {[%emt 0:00:03]} Kh6 {[%emt 0:05:07]} 56. Rc5 {[%emt 0:00:08]} Ra2 {[%emt 0:03:29]} 57. Re5 {[%emt 0:00:53]} Ra4+ {[%emt 0:01:06]} 58. Kg3 {[%emt 0:00:41]} Rb4 {[%emt 0:00:49]} 59. f4 {[%emt 0:00:08]} Ra4 {[%emt 0:03:54]} 60. Kg4 {[%emt 0:00:07]} Ra6 {[%emt 0:00:07]} 61. Re4 {[%emt 0:01:04]} Rb6 {[%emt 0:01:14]} 62. f5 {[%emt 0:00:16]} Rb1 {[%emt 0:01:03]} 63. f6 {[%emt 0:01:32]} Kh7 {[%emt 0:03:58]} 64. Re7+ {[%emt 0:00:05]} Kh6 {[%emt 0:00:42]} 65. Re8 {[%emt 0:00:38]} Rg1+ {[%emt 0:00:37]} 66. Kf5 {[%emt 0:00:05]} Rf1+ {[%emt 0:00:35]} 67. Ke6 {[%emt 0:00:05]} Re1+ {[%emt 0:00:33]} 68. Kf7 {[%emt 0:00:18]} Rf1 {[%emt 0:00:29]} 69. Rh8+ {[%emt 0:01:44]} Kg5 {[%emt 0:00:01]} 70. Rg8+ {[%emt 0:00:04]} Kh6 {[%emt 0:00:03]} 71. Re8 {[%emt 0:01:12]} Kh7 {[%emt 0:01:45]} 72. Re6 {[%emt 0:00:22]} Ra1 {[%emt 0:00:20]} 73. Kf8 {[%emt 0:00:06]} Ra8+ {[%emt 0:01:07]} 74. Re8 {[%emt 0:00:06]} Ra1 {[%emt 0:02:49]} 75. f7 {[%emt 0:00:29]} Ra7 {[%emt 0:00:16]} 76. Rd8 {[%emt 0:00:13]} Ra1 {[%emt 0:02:06]} 77. Ke7 {[%emt 0:00:28]} Re1+ {[%emt 0:00:02]} 78. Kd7 {[%emt 0:00:25]} Rd1+ {[%emt 0:00:02]} 79. Kc7 {[%emt 0:00:19]} Rc1+ {[%emt 0:00:21]} 80. Kb6 {[%emt 0:00:11]} Rb1+ {[%emt 0:00:24]} 81. Kc5 {[%emt 0:00:22]} Rc1+ {[%emt 0:00:04]} 82. Kb4 {[%emt 0:00:04]} Rb1+ {[%emt 0:00:19]} 83. Kc3 {[%emt 0:00:04]} Rc1+ {[%emt 0:00:25]} 84. Kb2 {[%emt 0:00:04]} Rf1 {[%emt 0:00:03]} 85. f8=R {[%emt 0:00:19]} Rh1 {[%emt 0:00:29]} 86. Rh8+ {[%emt 0:00:44]} Kg7 {[%emt 0:00:02]} 87. h6+ {[%emt 0:00:08]} Kf7 {[%emt 0:00:12]} 88. h7 {[%emt 0:00:31]} Rh2+ {[%emt 0:00:14]} 89. Kc3 {[%emt 0:00:05]} 1-0

[Event "28th Hit Open-A 2024"]
[Site "Nova Gorica"]
[Date "2024.01.30"]
[Round "6.8"]
[White "Cvitan, Ognjen"]
[Black "Siraj, Svit"]
[Result "1/2-1/2"]
[ECO "A13"]
[WhiteElo "2422"]
[BlackElo "2182"]
[Annotator "TA"]
[PlyCount "47"]
[EventDate "2024.01.22"]
[EventType "swiss"]
[EventCountry "SLO"]
[SourceTitle "playchess.com"]
[Source "ChessBase"]
[SourceQuality "1"]
[TimeControl "5400+30"]

{[%evp 13,47,10,23,39,36,35,37,36,29,31,39,37,39,0,12,15,30,33,60,60,65,68,84,46,47,49,99,96,99,93,102,83,80,80,77,79]} 1. c4 {[%emt 0:02:38]} Nf6 {[%emt 0:00:12]} 2. Nf3 {[%emt 0:01:17]} e6 {[%emt 0:00:12]} 3. g3 {[%emt 0:01:15]} d5 {[%emt 0:00:47]} 4. Bg2 {[%emt 0:00:11]} dxc4 {[%emt 0:01:19]} 5. Qa4+ {[%emt 0:00:55]} Nbd7 {[%emt 0:00:11]} 6. Qxc4 {[%emt 0:02:28]} c5 {[%emt 0:01:04]} 7. d3 {[%emt 0:06:27]} a6 {[%emt 0:00:54]} 8. Qb3 {[%emt 0:00:31]} Bd6 {[%emt 0:04:50]} 9. a4 {[%emt 0:01:32]} Rb8 {[%emt 0:01:39]} 10. a5 {[%emt 0:00:50] White is slightly better.} O-O {[%emt 0:01:44]} 11. Nbd2 {[%emt 0:01:42]} b5 {[%emt 0:02:05]} 12. axb6 {[%emt 0:01:32]} Nxb6 {[%emt 0:01:10]} 13. Nc4 {[%emt 0:04:21]} Nxc4 {[%emt 0:05:26]} 14. Qxc4 {[%emt 0:00:17]} e5 {[%emt 0:07:44]} 15. O-O {[%emt 0:01:38]} Rb4 {[%emt 0:14:16]} 16. Qc2 {[%emt 0:00:30]} Qb6 {[%emt 0:01:07]} 17. Nd2 {[%emt 0:08:01]} Be6 {[%emt 0:04:45]} 18. Nc4 {[%emt 0:01:11]} Bxc4 {[%emt 0:00:55]} 19. dxc4 {[%emt 0:00:03]} e4 {[%emt 0:11:36]} 20. Bxe4 $16 {[%emt 0:18:45] White is better.} Be5 {[%emt 0:00:46]} 21. Bf3 {[%emt 0:09:52]} Bxb2 {[%emt 0:01:46]} 22. Bxb2 {[%emt 0:00:54]} Rxb2 {[%emt 0:00:10]} 23. Qa4 {[%emt 0:02:41]} Rb4 {[%emt 0:01:01]} 24. Qxa6 {[%emt 0:00:43] Weighted Error Value: White=0.07 (flawless) /Black=0.10 (very precise) .  Mistake:       	---       	Black=1      Inaccurate:     	White=2     	Black=1      OK:         	White=8     	Black=7      Best:        	White=1     	---} 1/2-1/2

[Event "28th Hit Open-A 2024"]
[Site "Nova Gorica"]
[Date "2024.01.30"]
[Round "6.9"]
[White "Debevec, Blaz"]
[Black "Fercec, Nenad"]
[Result "1/2-1/2"]
[ECO "B94"]
[WhiteElo "2077"]
[BlackElo "2410"]
[Annotator "RC"]
[PlyCount "156"]
[EventDate "2024.01.22"]
[EventType "swiss"]
[EventCountry "SLO"]
[SourceTitle "playchess.com"]
[Source "ChessBase"]
[SourceQuality "1"]
[TimeControl "5400+30"]

1. e4 {[%emt 0:00:03]} c5 {[%emt 0:00:07]} 2. Nf3 {[%emt 0:00:07]} d6 {[%emt 0:00:08]} 3. d4 {[%emt 0:00:06]} cxd4 {[%emt 0:00:11]} 4. Nxd4 {[%emt 0:00:06]} Nf6 {[%emt 0:00:07]} 5. Nc3 {[%emt 0:00:07]} a6 {[%emt 0:00:07]} 6. Bg5 {[%emt 0:00:06]} Nbd7 {[%emt 0:00:17]} 7. Bc4 {[%emt 0:01:08]} h6 {[%emt 0:02:05]} 8. Bh4 {[%emt 0:01:29]} g6 {[%emt 0:00:41]} 9. O-O {[%emt 0:06:10]} e5 {[%emt 0:06:00]} 10. Nb3 {[%emt 0:02:26]} g5 {[%emt 0:00:10]} 11. Bg3 {[%emt 0:00:40]} b5 {[%emt 0:01:09]} 12. Bd5 {[%emt 0:01:26]} Rb8 {[%emt 0:00:43]} 13. a3 {[%emt 0:01:39]} Qc7 {[%emt 0:05:46]} 14. Kh1 {[%emt 0:05:34]} Be7 {[%emt 0:01:24]} 15. Qe2 {[%emt 0:08:36]} Nb6 {[%emt 0:03:00]} 16. Rfd1 {[%emt 0:01:48]} Na4 {[%emt 0:02:28]} 17. Nxa4 {[%emt 0:07:02]} bxa4 {[%emt 0:00:09]} 18. Nd2 {[%emt 0:00:58]} Nxd5 {[%emt 0:00:46]} 19. exd5 {[%emt 0:00:19]} Qxc2 {[%emt 0:00:22]} 20. Rac1 {[%emt 0:08:01]} Qf5 {[%emt 0:00:08]} 21. Nc4 {[%emt 0:01:55]} O-O {[%emt 0:00:50]} 22. Na5 {[%emt 0:01:25]} Rb5 {[%emt 0:00:20]} 23. Nc6 {[%emt 0:02:29]} Bf6 {[%emt 0:02:31]} 24. Rc4 {[%emt 0:02:09]} Bd7 {[%emt 0:01:03]} 25. f3 {[%emt 0:03:42]} Rc8 {[%emt 0:06:01]} 26. Be1 {[%emt 0:00:42]} Bxc6 {[%emt 0:02:56]} 27. Rxc6 {[%emt 0:01:41]} Rxc6 {[%emt 0:01:34]} 28. dxc6 {[%emt 0:00:02]} Rc5 {[%emt 0:00:11]} 29. Rxd6 {[%emt 0:03:24]} Be7 {[%emt 0:00:13]} 30. Rd7 {[%emt 0:02:59]} Bf6 {[%emt 0:02:15]} 31. Bc3 {[%emt 0:08:31]} Rxc6 {[%emt 0:00:33]} 32. Qd3 {[%emt 0:00:49]} e4 {[%emt 0:12:24]} 33. fxe4 {[%emt 0:03:19]} Qf2 {[%emt 0:00:32]} 34. Qf3 {[%emt 0:11:12]} Qxf3 {[%emt 0:01:19]} 35. gxf3 {[%emt 0:00:07]} Bxc3 {[%emt 0:00:04]} 36. bxc3 {[%emt 0:00:06]} Rxc3 {[%emt 0:00:14]} 37. Kg2 {[%emt 0:00:05]} Rxa3 {[%emt 0:00:20]} 38. Ra7 {[%emt 0:00:13]} Ra1 {[%emt 0:08:30]} 39. Rxa6 {[%emt 0:01:27]} Kg7 {[%emt 0:00:12]} 40. Kh3 {[%emt 0:02:18]} a3 {[%emt 0:00:15]} 41. Kg3 {[%emt 0:01:43]} a2 {[%emt 0:01:14]} 42. Kg2 {[%emt 0:00:29]} f6 {[%emt 0:00:09]} 43. Ra7+ {[%emt 0:02:00]} Kf8 {[%emt 0:02:30]} 44. Ra8+ {[%emt 0:04:27]} Ke7 {[%emt 0:00:11]} 45. Ra7+ {[%emt 0:00:56]} Kd6 {[%emt 0:00:08]} 46. Ra6+ {[%emt 0:00:09]} Kc5 {[%emt 0:00:13]} 47. Ra5+ {[%emt 0:00:43]} Kb4 {[%emt 0:00:06]} 48. Ra8 {[%emt 0:00:15]} h5 {[%emt 0:00:13]} 49. h4 {[%emt 0:03:05]} gxh4 {[%emt 0:00:24]} 50. f4 {[%emt 0:00:16]} Kb3 {[%emt 0:00:22]} 51. Rb8+ {[%emt 0:00:12]} Kc4 {[%emt 0:00:07]} 52. Ra8 {[%emt 0:00:12]} Kb3 {[%emt 0:00:19]} 53. Rb8+ {[%emt 0:00:06]} Kc3 {[%emt 0:00:03]} 54. Ra8 {[%emt 0:00:09]} h3+ {[%emt 0:00:21]} 55. Kh2 {[%emt 0:00:09]} Rf1 {[%emt 0:00:27]} 56. Rxa2 {[%emt 0:01:01]} Rxf4 {[%emt 0:00:05]} 57. Ra6 {[%emt 0:00:45]} Kd4 {[%emt 0:00:20]} 58. Re6 {[%emt 0:00:48]} Rf3 {[%emt 0:01:13]} 59. Re7 {[%emt 0:01:02]} Ke3 {[%emt 0:00:17]} 60. e5 {[%emt 0:00:25]} f5 {[%emt 0:00:06]} 61. Rg7 {[%emt 0:01:58]} Kf4 {[%emt 0:00:49]} 62. e6 {[%emt 0:00:14]} Re3 {[%emt 0:00:04]} 63. e7 {[%emt 0:00:09]} h4 {[%emt 0:00:32]} 64. Rf7 {[%emt 0:02:29]} Kg5 {[%emt 0:00:07]} 65. Rh7 {[%emt 0:00:22]} Kf6 {[%emt 0:01:01]} 66. Rxh4 {[%emt 0:00:40]} Kxe7 {[%emt 0:00:05]} 67. Rxh3 {[%emt 0:00:28]} Re2+ {[%emt 0:00:48]} 68. Kg1 {[%emt 0:00:15]} Kf6 {[%emt 0:00:05]} 69. Kf1 {[%emt 0:00:11]} Ra2 {[%emt 0:00:03]} 70. Rb3 {[%emt 0:00:38]} Kg5 {[%emt 0:00:13]} 71. Rc3 {[%emt 0:00:15]} Kg4 {[%emt 0:00:11]} 72. Rb3 {[%emt 0:00:26]} f4 {[%emt 0:00:26]} 73. Rc3 {[%emt 0:00:34]} Rd2 {[%emt 0:00:07]} 74. Ra3 {[%emt 0:00:34]} Rh2 {[%emt 0:00:32]} 75. Rb3 {[%emt 0:00:35]} Ra2 {[%emt 0:00:31]} 76. Rc3 {[%emt 0:00:16]} Kf5 {[%emt 0:00:15]} 77. Rb3 {[%emt 0:00:34]} Kg4 {[%emt 0:00:05]} 78. Rc3 {[%emt 0:00:09]} Kf5 {[%emt 0:00:47]} 1/2-1/2

[Event "28th Hit Open-A 2024"]
[Site "Nova Gorica"]
[Date "2024.01.30"]
[Round "6.10"]
[White "Szegedy, Matyas"]
[Black "Davies, Nigel R"]
[Result "1/2-1/2"]
[ECO "C41"]
[WhiteElo "2129"]
[BlackElo "2349"]
[Annotator "TA"]
[PlyCount "87"]
[EventDate "2024.01.22"]
[EventType "swiss"]
[EventCountry "SLO"]
[SourceTitle "playchess.com"]
[Source "ChessBase"]
[SourceQuality "1"]
[TimeControl "5400+30"]

{[%evp 18,87,43,49,75,27,91,66,75,86,87,85,213,164,195,192,248,244,322,278,272,256,266,278,322,176,183,178,210,172,156,108,120,128,120,119,122,118,107,126,118,121,124,125,125,120,122,140,179,156,167,152,162,158,245,110,106,13,16,0,0,-4,-4,-4,-3,-3,0,0,0,0,0,0]} 1. e4 {[%emt 0:00:08]} d6 {[%emt 0:00:37]} 2. d4 {[%emt 0:00:17]} Nf6 {[%emt 0:00:07]} 3. Nc3 {[%emt 0:00:08]} e5 {[%emt 0:00:05]} 4. Nf3 {[%emt 0:00:30]} Nbd7 {[%emt 0:00:08]} 5. Bc4 {[%emt 0:00:30]} Be7 {[%emt 0:00:07]} 6. a4 {[%emt 0:00:45]} O-O {[%emt 0:00:15]} 7. O-O {[%emt 0:00:12]} c6 {[%emt 0:00:14]} 8. h3 {[%emt 0:01:49]} b6 {[%emt 0:00:56]} 9. Qe2 {[%emt 0:08:31]} a6 {[%emt 0:01:08]} 10. Rd1 {[%emt 0:00:32]} Qc7 {[%emt 0:00:35]} 11. Be3 {[%emt 0:14:04]} ({White should play} 11. d5 $16) 11... h6 {[%emt 0:06:08]} (11... Bb7 $11) 12. Ba2 {[%emt 0:01:48]} Rb8 {[%emt 0:02:29] White is slightly better.} 13. Nh4 {[%emt 0:12:02]} exd4 {[%emt 0:00:43]} 14. Bxd4 {[%emt 0:00:52] Black must now prevent Ng6.} Nc5 {[%emt 0:00:42]} (14... Bd8 $16) 15. e5 {[%emt 0:06:21][%cal Be4e5,Be5d6][%mdl 32]} Nd5 {[%emt 0:00:48]} 16. Bxd5 {[%emt 0:06:38]} (16. Nxd5 cxd5 17. exd6 Bxd6 $16) 16... Bxh4 {[%emt 0:00:24]} (16... cxd5 $142 17. exd6 (17. Nxd5 Qb7 $16) 17... Bxd6 18. Nxd5 Qd8) 17. exd6 $18 {[%emt 0:00:26]} Qb7 {[%emt 0:00:55]} 18. Ba2 {[%emt 0:01:47]} Be6 {[%emt 0:01:46]} 19. Bxe6 {[%emt 0:02:58]} Nxe6 {[%emt 0:00:07]} 20. Be5 {[%emt 0:00:06]} Bd8 {[%emt 0:04:08]} 21. Qg4 {[%emt 0:03:24]} (21. d7 $142) 21... Qd7 {[%emt 0:00:58]} 22. Re1 {[%emt 0:02:01]} ({Worse is} 22. Bxg7 f5 23. Qc4 (23. Qg6 Nxg7 24. Qxh6 Rf6 $15) 23... b5 $17 (23... Kxg7 24. Qxa6 Bf6 25. Qc4 $15)) 22... Rb7 {[%emt 0:02:44]} 23. h4 {[%emt 0:04:39][%cal Bh3h4,Bh4h5][%mdl 32]} f5 {[%emt 0:04:26]} 24. Qc4 {[%emt 0:02:13]} (24. Qh5 $142) 24... b5 $16 {[%emt 0:00:58]} 25. axb5 {[%emt 0:00:15]} axb5 {[%emt 0:00:08]} 26. Qb3 {[%emt 0:01:20][%cal Oe5g7] White has more active pieces.} Kh7 {[%emt 0:02:33]} 27. h5 $36 {[%emt 0:15:08][%mdl 2048] White is really pushing.} Bb6 {[%emt 0:02:10]} 28. Ne2 {[%emt 0:02:38]} Nc5 {[%emt 0:02:41]} 29. Qg3 {[%emt 0:08:35] Strongly threatening Nf4.} Ne4 {[%emt 0:00:23][%csl LRf2,LRg3]} 30. Qg6+ {[%emt 0:00:05]} Kg8 {[%emt 0:00:07]} 31. Bd4 {[%emt 0:01:56]} c5 {[%emt 0:00:24][%cal Bc6c5,Bc5c4][%mdl 32]} 32. Be5 {[%emt 0:00:39] And now Nf4 would win. Really sharp!} Qe8 {[%emt 0:10:16]} 33. Qxe8 {[%emt 0:01:44]} Rxe8 {[%emt 0:00:09] [#]} 34. f4 {[%emt 0:00:06]} c4+ {[%emt 0:00:33] [#]} 35. Kh2 $1 {[%emt 0:00:07]} Bc5 {[%emt 0:00:37]} (35... Rd8 $16 36. Ng3 Nxd6) 36. Ra6 {[%emt 0:01:36]} (36. Ng3 $18 {has better winning chances.} Nxg3 (36... Nxd6 $2 {too greedy.} 37. Bxd6 Rxe1 38. Ra8+ Kh7 39. Bxc5 $18) 37. Kxg3) 36... Rd7 {[%emt 0:00:54][%cal Rc5d6]} 37. Nc3 {[%emt 0:01:07]} ({White should try} 37. Nd4 $16 Bxd4 38. Bxd4) 37... Nxc3 $1 $11 {[%emt 0:13:41] The position is equal.} 38. bxc3 {[%emt 0:00:12] Rb1 would now be deadly.} (38. Bxc3 {simplifies} Rxe1 39. Bxe1 Rxd6 40. Ra5) 38... Bxd6 $1 {[%emt 0:01:01]} 39. Rd1 {[%emt 0:00:52]} Rxe5 $1 {[%emt 0:00:08]} 40. Rdxd6 {[%emt 0:00:29]} Rxd6 {[%emt 0:00:14]} 41. Rxd6 {[%emt 0:00:04]} Re3 {[%emt 0:00:15]} 42. Rd5 {[%emt 0:00:37][%csl LRb5,LRf5]} Rxc3 {[%emt 0:00:10]} 43. Rxb5 {[%emt 0:00:07]} Rxc2 {[%emt 0:00:09]} 44. Rxf5 {[%emt 0:00:04] Black defended with fortune.   Weighted Error Value: White=0.23 (precise) /Black=0.22 (precise) .  Mistake:       	White=5     	Black=4      Inaccurate:     	---       	Black=1      OK:         	White=15    	Black=10     Best:        	White=1     	Black=4      Strong:       	White=1     	Black=3} 1/2-1/2

[Event "28th Hit Open-A 2024"]
[Site "Nova Gorica"]
[Date "2024.01.30"]
[Round "6.11"]
[White "Trybus, Daniel"]
[Black "Gaal, Zsoka"]
[Result "0-1"]
[ECO "C44"]
[WhiteElo "2039"]
[BlackElo "2341"]
[Annotator "RC"]
[PlyCount "108"]
[EventDate "2024.01.22"]
[EventType "swiss"]
[EventCountry "SLO"]
[SourceTitle "playchess.com"]
[Source "ChessBase"]
[SourceQuality "1"]
[TimeControl "5400+30"]

1. e4 {[%emt 0:00:03]} e5 {[%emt 0:00:30]} 2. Nf3 {[%emt 0:00:15]} Nc6 {[%emt 0:00:15]} 3. d3 {[%emt 0:00:10]} d6 {[%emt 0:07:09]} 4. g3 {[%emt 0:01:16]} Nge7 {[%emt 0:02:03]} 5. Bg2 {[%emt 0:04:07]} g6 {[%emt 0:00:25]} 6. Bg5 {[%emt 0:07:59]} Bg7 {[%emt 0:00:29]} 7. c4 {[%emt 0:01:54]} h6 {[%emt 0:03:46]} 8. Be3 {[%emt 0:00:21]} f5 {[%emt 0:09:41]} 9. Nc3 {[%emt 0:12:02]} O-O {[%emt 0:08:12]} 10. Qd2 {[%emt 0:08:32]} Kh7 {[%emt 0:05:11]} 11. h4 {[%emt 0:06:04]} Nd4 {[%emt 0:06:04]} 12. Nh2 {[%emt 0:02:38]} Ne6 {[%emt 0:05:14]} 13. f4 {[%emt 0:04:53]} h5 {[%emt 0:11:45]} 14. O-O-O {[%emt 0:03:46]} exf4 {[%emt 0:00:59]} 15. gxf4 {[%emt 0:00:19]} fxe4 {[%emt 0:00:22]} 16. dxe4 {[%emt 0:02:47]} Nxf4 {[%emt 0:01:10]} 17. Bf1 {[%emt 0:03:32]} Ne6 {[%emt 0:03:10]} 18. Bd3 {[%emt 0:03:57]} Nc6 {[%emt 0:00:44]} 19. e5 {[%emt 0:05:32]} Nxe5 {[%emt 0:00:25]} 20. Be4 {[%emt 0:00:32]} Bd7 {[%emt 0:02:57]} 21. Qe2 {[%emt 0:02:59]} Nf4 {[%emt 0:01:33]} 22. Qc2 {[%emt 0:00:45]} Bc6 {[%emt 0:04:26]} 23. Nd5 {[%emt 0:01:01]} Bxd5 {[%emt 0:02:10]} 24. cxd5 {[%emt 0:00:14]} Qe8 {[%emt 0:00:11]} 25. Kb1 {[%emt 0:03:12]} Qb5 {[%emt 0:01:19]} 26. a4 {[%emt 0:03:22]} Qe2 {[%emt 0:01:15]} 27. Rde1 {[%emt 0:01:32]} Qxc2+ {[%emt 0:01:07]} 28. Kxc2 {[%emt 0:00:02]} c6 {[%emt 0:01:16]} 29. dxc6 {[%emt 0:00:23]} bxc6 {[%emt 0:00:08]} 30. Rhf1 {[%emt 0:02:26]} Nd5 {[%emt 0:03:36]} 31. Bxd5 {[%emt 0:00:14]} cxd5 {[%emt 0:00:07]} 32. Rxf8 {[%emt 0:00:01]} Rxf8 {[%emt 0:00:14]} 33. Bxa7 {[%emt 0:03:18]} Ra8 {[%emt 0:03:03]} 34. Bf2 {[%emt 0:01:30]} Rxa4 {[%emt 0:00:16]} 35. Rd1 {[%emt 0:00:12]} Rc4+ {[%emt 0:00:57]} 36. Kb3 {[%emt 0:00:31]} Nc6 {[%emt 0:00:57]} 37. Be1 {[%emt 0:01:23]} Nd4+ {[%emt 0:00:52]} 38. Ka2 {[%emt 0:00:24]} Be5 {[%emt 0:06:08]} 39. Nf1 {[%emt 0:01:06]} Ra4+ {[%emt 0:00:17]} 40. Kb1 {[%emt 0:00:28]} Nf3 {[%emt 0:00:10]} 41. Bg3 {[%emt 0:00:41]} Bxg3 {[%emt 0:01:08]} 42. Nxg3 {[%emt 0:00:01]} Rxh4 {[%emt 0:00:30]} 43. Rxd5 {[%emt 0:00:19]} Rd4 {[%emt 0:00:26]} 44. Rxd4 {[%emt 0:01:04]} Nxd4 {[%emt 0:00:07]} 45. Kc1 {[%emt 0:00:24]} h4 {[%emt 0:00:51]} 46. Nh1 {[%emt 0:01:03]} g5 {[%emt 0:00:43]} 47. Kd2 {[%emt 0:00:22]} Nb5 {[%emt 0:00:11]} 48. b4 {[%emt 0:00:58]} Kg6 {[%emt 0:00:07]} 49. Ke3 {[%emt 0:00:10]} Kf5 {[%emt 0:00:08]} 50. Kf3 {[%emt 0:01:06]} g4+ {[%emt 0:00:07]} 51. Ke3 {[%emt 0:00:01]} d5 {[%emt 0:00:12]} 52. Nf2 {[%emt 0:00:08]} d4+ {[%emt 0:01:19]} 53. Kd3 {[%emt 0:00:09]} Kf4 {[%emt 0:00:06]} 54. Kc4 {[%emt 0:00:09]} Kf3 {[%emt 0:00:31]} 0-1